fUST/lending_fUST_20240906
["ID","MTS","AMOUNT","RATE_DAILY","PERIOD"]
[337279675,1725573119523,-500.0,0.00024931,2]
[337279676,1725573119535,-500.0,0.00024938,2]
[337279677,1725573119549,-14032.35591278,0.00025,10]
[337279678,1725573119560,-1000.0,0.00025,5]
[337279679,1725573119584,-230223.07221483,0.00025,2]
[337279680,1725573119595,-10364.0,0.00025,2]
[337279681,1725573119606,-157.66719278,0.00025,7]
[337279682,1725573119618,-12063.20024727,0.00025,10]
[337279683,1725573119628,-230.32,0.00025,2]
[337279684,1725573119639,-583.57,0.00025,7]
[337279685,1725573119651,-1000.0,0.00025,25]
[337279686,1725573119663,-2119.76915106,0.00025,2]
[337279687,1725573119674,-271349.25821703,0.00025,2]
[337279688,1725573119683,-75464.40636955,0.00025,2]
[337279689,1725573119694,-505.477561,0.00025,7]
[337279690,1725573119707,-164.19233823,0.00025,2]
[337279691,1725573119717,-56450.32542419,0.00025,2]
[337279692,1725573119727,-38253.88483087,0.00025,2]
[337279693,1725573119739,-150.0,0.00025,2]
[337279694,1725573119750,-227.2824352,0.00025,2]
[337279695,1725573119762,-20149.17448107,0.00025,20]
[337279696,1725573119774,-600.0,0.00025,2]
[337279697,1725573119785,-2000.0,0.0002502,2]
[337279698,1725573119797,-900.0,0.00025057,2]
[337279699,1725573119808,-500.0,0.00025075,2]
[337279700,1725573119819,-500.0,0.00025078,2]
[337279701,1725573119830,-163136.24922878,0.0002509,2]
[337279702,1725573119841,-28817.93859122,0.0002509,2]
[337279703,1725573119853,-900.0,0.00025099,2]
[337279704,1725573119864,-900.0,0.00025148,2]
[337279705,1725573119876,-900.0,0.00025165,2]
[337279706,1725573119887,-500.0,0.00025205,2]
[337279707,1725573119899,-500.0,0.00025205,2]
[337279708,1725573119909,-347.3,0.00025205,2]
[337279709,1725573119919,-1061.25,0.00025205,2]
[337279710,1725573119928,-888.02,0.00025205,2]
[337279711,1725573119938,-500.0,0.00025205,2]
[337279712,1725573119949,-238.31281376,0.00025205,2]
[337279713,1725573119960,-1260.83,0.00025205,2]
[337279714,1725573119971,-500.0,0.00025205,2]
[337279715,1725573119983,-500.0,0.00025205,2]
[337279716,1725573119993,-500.0,0.00025205,2]
[337279717,1725573120003,-829.3,0.00025205,2]
[337279718,1725573120013,-500.0,0.00025205,2]
[337279719,1725573120022,-500.0,0.00025205,2]
[337279720,1725573120032,-500.0,0.00025205,2]
[337279721,1725573120042,-491.04571848,0.00025205,2]
[337279722,1725573120052,-756.67,0.00025205,2]
[337279723,1725573120061,-500.0,0.00025205,2]
[337279724,1725573120071,-551.83782196,0.00025205,2]
[337279725,1725573120081,-500.0,0.00025205,2]
[337279726,1725573120090,-500.0,0.00025205,2]
[337279727,1725573120101,-500.0,0.00025205,2]
[337279728,1725573120111,-486.38812362,0.00025205,2]
[337279729,1725573120121,-500.0,0.00025205,2]
[337279730,1725573120131,-529.72,0.00025205,2]
[337279731,1725573120142,-203.12165124,0.00025205,2]
[337279732,1725573120152,-500.0,0.00025205,2]
[337279733,1725573120162,-500.0,0.00025205,2]
[337279734,1725573120172,-500.0,0.00025205,2]
[337279735,1725573120182,-1089.23,0.00025205,2]
[337279736,1725573120191,-776.91,0.00025205,2]
[337279737,1725573120202,-500.0,0.00025205,2]
[337279738,1725573120212,-500.0,0.00025205,2]
[337279739,1725573120222,-500.0,0.00025205,2]
[337279740,1725573120231,-1257.36,0.00025205,2]
[337279741,1725573120241,-1799.22,0.00025205,2]
[337279742,1725573120251,-500.0,0.00025205,2]
[337279743,1725573120261,-872.21,0.00025205,2]
[337279744,1725573120272,-500.0,0.00025205,2]
[337279745,1725573120282,-530.07969563,0.00025205,2]
[337279746,1725573120292,-500.0,0.00025205,2]
[337279747,1725573120302,-690.94,0.00025205,2]
[337279748,1725573120313,-500.0,0.00025205,2]
[337279749,1725573120323,-500.0,0.00025205,2]
[337279750,1725573120333,-500.0,0.00025205,2]
[337279751,1725573120343,-722.69,0.00025205,2]
[337279752,1725573120355,-500.0,0.00025205,2]
[337279753,1725573120366,-500.0,0.00025205,2]
[337279754,1725573120376,-1492.06,0.00025205,2]
[337279755,1725573120388,-500.0,0.00025205,2]
[337279756,1725573120400,-500.0,0.00025205,2]
[337279757,1725573120411,-500.0,0.00025205,2]
[337279758,1725573120422,-500.0,0.00025205,2]
[337279759,1725573120433,-500.0,0.00025205,2]
[337279760,1725573120444,-500.0,0.00025205,2]
[337279761,1725573120455,-802.19,0.00025205,2]
[337279762,1725573120467,-552.14,0.00025205,2]
[337279763,1725573120478,-500.0,0.00025205,2]
[337279764,1725573120491,-990.72,0.00025205,2]
[337279765,1725573120500,-500.0,0.00025205,2]
[337279766,1725573120510,-500.0,0.00025205,2]
[337279767,1725573120521,-967.82,0.00025205,2]
[337279768,1725573120530,-888.41,0.00025205,2]
[337279769,1725573120547,-500.0,0.00025205,2]
[337279770,1725573120561,-606.39,0.00025205,2]
[337279771,1725573120571,-516.74115399,0.00025205,2]
[337279772,1725573120582,-500.0,0.00025205,2]
[337279773,1725573120592,-1160.38,0.00025205,2]
[337279774,1725573120602,-1034.45,0.00025205,2]
[337279775,1725573120612,-500.0,0.00025205,2]
[337279776,1725573120625,-527.85306363,0.00025205,2]
[337279777,1725573120635,-500.0,0.00025205,2]
[337279778,1725573120645,-500.0,0.00025205,2]
[337279779,1725573120656,-500.0,0.00025205,2]
[337279780,1725573120665,-500.0,0.00025205,2]
[337279781,1725573120675,-500.0,0.00025205,2]
[337279782,1725573120686,-1055.78,0.00025205,2]
[337279783,1725573120696,-709.32,0.00025205,2]
[337279784,1725573120706,-500.0,0.00025205,2]
[337279785,1725573120717,-528.03,0.00025205,2]
[337279786,1725573120726,-500.0,0.00025205,2]
[337279787,1725573120738,-500.0,0.00025205,2]
[337279788,1725573120748,-500.0,0.00025205,2]
[337279789,1725573120760,-500.0,0.00025205,2]
[337279790,1725573120771,-500.0,0.00025205,2]
[337279791,1725573120783,-500.0,0.00025205,2]
[337279792,1725573120796,-500.0,0.00025205,2]
[337279793,1725573120807,-1309.6,0.00025205,2]
[337279794,1725573120820,-500.0,0.00025205,2]
[337279795,1725573120830,-597.29,0.00025205,2]
[337279796,1725573120840,-707.89,0.00025205,2]
[337279797,1725573120849,-500.0,0.00025205,2]
[337279798,1725573120859,-637.08,0.00025205,2]
[337279799,1725573120868,-500.0,0.00025205,2]
[337279800,1725573120878,-500.0,0.00025205,2]
[337279801,1725573120888,-500.0,0.00025205,2]
[337279802,1725573120898,-500.0,0.00025205,2]
[337279803,1725573120909,-500.0,0.00025205,2]
[337279804,1725573120918,-1529.25,0.00025205,2]
[337279805,1725573120928,-339.12385737,0.00025205,2]
[337279806,1725573120938,-512.48,0.00025205,2]
[337279807,1725573120950,-1497.88,0.00025205,2]
[337279808,1725573120961,-500.0,0.00025205,2]
[337279809,1725573120972,-3384.84,0.00025205,2]
[337279810,1725573120983,-1224.58,0.00025205,2]
[337279811,1725573120994,-500.0,0.00025205,2]
[337279812,1725573121004,-1508.59,0.00025205,2]
[337279813,1725573121015,-500.0,0.00025205,2]
[337279814,1725573121026,-948.48,0.00025205,2]
[337279815,1725573121038,-500.0,0.00025205,2]
[337279816,1725573121049,-509.6,0.00025205,2]
[337279817,1725573121059,-500.0,0.00025205,2]
[337279818,1725573121073,-3334.83,0.00025205,2]
[337279819,1725573121085,-500.0,0.00025205,2]
[337279820,1725573121097,-956.86,0.00025205,2]
[337279821,1725573121108,-500.0,0.00025205,2]
[337279822,1725573121120,-500.0,0.00025205,2]
[337279823,1725573121131,-500.0,0.00025205,2]
[337279824,1725573121143,-807.1,0.00025205,2]
[337279825,1725573121154,-500.0,0.00025205,2]
[337279826,1725573121163,-500.0,0.00025205,2]
[337279827,1725573121174,-500.0,0.00025205,2]
[337279828,1725573121185,-545.62,0.00025205,2]
[337279829,1725573121195,-500.0,0.00025205,2]
[337279830,1725573121208,-500.0,0.00025205,2]
[337279831,1725573121219,-500.0,0.00025205,2]
[337279832,1725573121230,-382.25973374,0.00025205,2]
[337279833,1725573121242,-1234.38,0.00025205,2]
[337279834,1725573121253,-1688.93,0.00025205,2]
[337279835,1725573121263,-500.0,0.00025205,2]
[337279836,1725573121273,-500.0,0.00025205,2]
[337279837,1725573121283,-775.84,0.00025205,2]
[337279838,1725573121293,-6155.32,0.00025205,2]
[337279839,1725573121303,-500.0,0.00025205,2]
[337279840,1725573121313,-1513.75,0.00025205,2]
[337279841,1725573121322,-1384.94,0.00025205,2]
[337279842,1725573121332,-891.8,0.00025205,2]
[337279843,1725573121341,-1454.37,0.00025205,2]
[337279844,1725573121351,-727.07,0.00025205,2]
[337279845,1725573121360,-500.0,0.00025205,2]
[337279846,1725573121371,-803.53,0.00025205,2]
[337279847,1725573121382,-500.0,0.00025205,2]
[337279848,1725573121394,-500.0,0.00025205,2]
[337279849,1725573121407,-3161.3,0.00025205,2]
[337279850,1725573121419,-500.0,0.00025205,2]
[337279851,1725573121431,-1185.19,0.00025205,2]
[337279852,1725573121442,-831.41,0.00025205,2]
[337279853,1725573121453,-1174.57,0.00025205,2]
[337279854,1725573121464,-7144.8,0.00025205,2]
[337279855,1725573121475,-500.0,0.00025205,2]
[337279856,1725573121486,-500.0,0.00025205,2]
[337279857,1725573121495,-11733.4,0.00025205,2]
[337279858,1725573121506,-500.0,0.00025205,2]
[337279859,1725573121518,-500.0,0.00025205,2]
[337279860,1725573121529,-4398.52,0.00025205,2]
[337279861,1725573121541,-1185.15,0.00025205,2]
[337279862,1725573121551,-544.5,0.00025205,2]
[337279863,1725573121562,-1466.8,0.00025205,2]
[337279864,1725573121572,-500.0,0.00025205,2]
[337279865,1725573121584,-13227.74,0.00025205,2]
[337279866,1725573121594,-500.0,0.00025205,2]
[337279867,1725573121604,-8686.28,0.00025205,2]
[337279868,1725573121615,-1353.11,0.00025205,2]
[337279869,1725573121625,-500.0,0.00025205,2]
[337279870,1725573121636,-500.0,0.00025205,2]
[337279871,1725573121646,-500.0,0.00025205,2]
[337279872,1725573121656,-704.28,0.00025205,2]
[337279873,1725573121667,-590.9,0.00025205,2]
[337279874,1725573121676,-1233.53,0.00025205,2]
[337279875,1725573121687,-500.0,0.00025205,2]
[337279876,1725573121698,-500.0,0.00025205,2]
[337279877,1725573121708,-1358.39,0.00025205,2]
[337279878,1725573121718,-900.4,0.00025205,2]
[337279879,1725573121728,-823.63,0.00025205,2]
[337279880,1725573121738,-509.12,0.00025205,2]
[337279881,1725573121748,-7723.59,0.00025205,2]
[337279882,1725573121759,-1103.42,0.00025205,2]
[337279883,1725573121768,-500.0,0.00025205,2]
[337279884,1725573121779,-500.0,0.00025205,2]
[337279885,1725573121788,-628.33,0.00025205,2]
[337279886,1725573121798,-500.0,0.00025205,2]
[337279887,1725573121807,-500.0,0.00025205,2]
[337279888,1725573121817,-2578.29,0.00025205,2]
[337279889,1725573121827,-500.0,0.00025205,2]
[337279890,1725573121837,-500.0,0.00025205,2]
[337279891,1725573121847,-500.0,0.00025205,2]
[337279892,1725573121857,-1133.56,0.00025205,2]
[337279893,1725573121867,-1129.73,0.00025205,2]
[337279894,1725573121878,-1144.17,0.00025205,2]
[337279895,1725573121889,-938.87,0.00025205,2]
[337279896,1725573121898,-3954.36,0.00025205,2]
[337279897,1725573121909,-500.0,0.00025205,2]
[337279898,1725573121920,-563.72,0.00025205,2]
[337279899,1725573121931,-500.0,0.00025205,2]
[337279900,1725573121943,-500.0,0.00025205,2]
[337279901,1725573121955,-828.83,0.00025205,2]
[337279902,1725573121965,-7650.67,0.00025205,2]
[337279903,1725573121976,-686.81,0.00025205,2]
[337279904,1725573121988,-638.15,0.00025205,2]
[337279905,1725573121998,-500.0,0.00025205,2]
[337279906,1725573122007,-500.0,0.00025205,2]
[337279907,1725573122017,-871.34,0.00025205,2]
[337279908,1725573122026,-500.0,0.00025205,2]
[337279909,1725573122036,-970.45,0.00025205,2]
[337279910,1725573122048,-623.1794378,0.00025205,2]
[337279911,1725573122059,-500.0,0.00025205,2]
[337279912,1725573122069,-500.0,0.00025205,2]
[337279913,1725573122082,-875.36,0.00025205,2]
[337279914,1725573122091,-1709.21,0.00025205,2]
[337279915,1725573122101,-5424.64,0.00025205,2]
[337279916,1725573122111,-1320.86,0.00025205,2]
[337279917,1725573122121,-646.37,0.00025205,2]
[337279918,1725573122134,-777.39,0.00025205,2]
[337279919,1725573122147,-4959.4,0.00025205,2]
[337279920,1725573122157,-1196.83,0.00025205,2]
[337279921,1725573122168,-589.02,0.00025205,2]
[337279922,1725573122179,-500.0,0.00025205,2]
[337279923,1725573122191,-373.59258984,0.00025205,2]
[337279924,1725573122202,-500.0,0.00025205,2]
[337279925,1725573122212,-948.09,0.00025205,2]
[337279926,1725573122224,-500.0,0.00025205,2]
[337279927,1725573122233,-564.66694769,0.00025205,2]
[337279928,1725573122244,-500.0,0.00025205,2]
[337279929,1725573122256,-500.0,0.00025205,2]
[337279930,1725573122267,-946.95,0.00025205,2]
[337279931,1725573122278,-500.0,0.00025205,2]
[337279932,1725573122289,-6005.41,0.00025205,2]
[337279933,1725573122298,-1557.31,0.00025205,2]
[337279934,1725573122309,-7130.97,0.00025205,2]
[337279935,1725573122319,-340.68950103,0.00025205,2]
[337279936,1725573122329,-983.46,0.00025205,2]
[337279937,1725573122338,-788.94,0.00025205,2]
[337279938,1725573122347,-1361.66,0.00025205,2]
[337279939,1725573122357,-3476.04,0.00025205,2]
[337279940,1725573122367,-745.29,0.00025205,2]
[337279941,1725573122376,-500.0,0.00025205,2]
[337279942,1725573122386,-500.0,0.00025205,2]
[337279943,1725573122396,-500.0,0.00025205,2]
[337279944,1725573122406,-1053.94,0.00025205,2]
[337279945,1725573122415,-257.81514771,0.00025205,2]
[337279946,1725573122425,-500.0,0.00025205,2]
[337279947,1725573122434,-899.19,0.00025205,2]
[337279948,1725573122443,-1880.59,0.00025205,2]
[337279949,1725573122453,-563.87,0.00025205,2]
[337279950,1725573122463,-499.55969982,0.00025205,2]
[337279951,1725573122472,-500.0,0.00025212,2]
[337279952,1725573122481,-900.0,0.000253,2]
[337279953,1725573122493,-2000.0,0.0002532,2]
[337279954,1725573122503,-2592.51886373,0.00025328,2]
[337279955,1725573122513,-500.0,0.00025349,2]
[337279956,1725573122523,-500.0,0.00025384,2]
[337279957,1725573122533,-500.0,0.00025479,2]
[337279958,1725573122546,-500.0,0.00025479,2]
[337279959,1725573122555,-1061.25,0.00025479,2]
[337279960,1725573122564,-888.02,0.00025479,2]
[337279961,1725573122574,-500.0,0.00025479,2]
[337279962,1725573122584,-1260.83,0.00025479,2]
[337279963,1725573122594,-500.0,0.00025479,2]
[337279964,1725573122606,-500.0,0.00025479,2]
[337279965,1725573122619,-576.62334846,0.00025479,2]
[337279966,1725573122631,-829.3,0.00025479,2]
[337279967,1725573122641,-500.0,0.00025479,2]
[337279968,1725573122651,-500.0,0.00025479,2]
[337279969,1725573122663,-500.0,0.00025479,2]
[337279970,1725573122674,-756.67,0.00025479,2]
[337279971,1725573122685,-235.47958933,0.00025479,2]
[337279972,1725573122696,-500.0,0.00025479,2]
[337279973,1725573122707,-500.0,0.00025479,2]
[337279974,1725573122717,-604.92059789,0.00025479,2]
[337279975,1725573122726,-500.0,0.00025479,2]
[337279976,1725573122738,-529.72,0.00025479,2]
[337279977,1725573122750,-500.0,0.00025479,2]
[337279978,1725573122761,-500.0,0.00025479,2]
[337279979,1725573122771,-500.0,0.00025479,2]
[337279980,1725573122782,-1089.23,0.00025479,2]
[337279981,1725573122793,-776.91,0.00025479,2]
[337279982,1725573122805,-500.0,0.00025479,2]
[337279983,1725573122815,-524.06840003,0.00025479,2]
[337279984,1725573122824,-1257.36,0.00025479,2]
[337279985,1725573122834,-1799.22,0.00025479,2]
[337279986,1725573122847,-872.21,0.00025479,2]
[337279987,1725573123068,-500.0,0.00025479,2]
[337279988,1725573123080,-500.0,0.00025479,2]
[337279989,1725573123090,-690.94,0.00025479,2]
[337279990,1725573123099,-500.0,0.00025479,2]
[337279991,1725573123109,-500.0,0.00025479,2]
[337279992,1725573123119,-500.0,0.00025479,2]
[337279993,1725573123128,-722.69,0.00025479,2]
[337279994,1725573123138,-500.0,0.00025479,2]
[337279995,1725573123149,-500.0,0.00025479,2]
[337279996,1725573123160,-1492.06,0.00025479,2]
[337279997,1725573123170,-500.0,0.00025479,2]
[337279998,1725573123180,-525.3745665,0.00025479,2]
[337279999,1725573123190,-500.0,0.00025479,2]
[337280000,1725573123200,-500.0,0.00025479,2]
[337280001,1725573123211,-802.19,0.00025479,2]
[337280002,1725573123221,-552.14,0.00025479,2]
[337280003,1725573123232,-500.0,0.00025479,2]
[337280004,1725573123243,-990.72,0.00025479,2]
[337280005,1725573123254,-500.0,0.00025479,2]
[337280006,1725573123264,-967.82,0.00025479,2]
[337280007,1725573123276,-888.41,0.00025479,2]
[337280008,1725573123288,-500.0,0.00025479,2]
[337280009,1725573123300,-606.39,0.00025479,2]
[337280010,1725573123311,-500.0,0.00025479,2]
[337280011,1725573123321,-1160.38,0.00025479,2]
[337280012,1725573123333,-1034.45,0.00025479,2]
[337280013,1725573123343,-500.0,0.00025479,2]
[337280014,1725573123355,-500.0,0.00025479,2]
[337280015,1725573123368,-588.18003143,0.00025479,2]
[337280016,1725573123381,-516.44962078,0.00025479,2]
[337280017,1725573123392,-500.0,0.00025479,2]
[337280018,1725573123403,-620.97473905,0.00025479,2]
[337280019,1725573123414,-1055.78,0.00025479,2]
[337280020,1725573123425,-709.32,0.00025479,2]
[337280021,1725573123436,-500.0,0.00025479,2]
[337280022,1725573123447,-528.03,0.00025479,2]
[337280023,1725573123459,-500.0,0.00025479,2]
[337280024,1725573123470,-275.29290669,0.00025479,2]
[337280025,1725573123481,-221.62711514,0.00025479,2]
[337280026,1725573123492,-500.0,0.00025479,2]
[337280027,1725573123504,-362.07317257,0.00025479,2]
[337280028,1725573123515,-500.0,0.00025479,2]
[337280029,1725573123527,-1309.6,0.00025479,2]
[337280030,1725573123539,-500.0,0.00025479,2]
[337280031,1725573123550,-597.29,0.00025479,2]
[337280032,1725573123562,-707.89,0.00025479,2]
[337280033,1725573123573,-500.0,0.00025479,2]
[337280034,1725573123585,-637.08,0.00025479,2]
[337280035,1725573123596,-500.0,0.00025479,2]
[337280036,1725573123608,-500.0,0.00025479,2]
[337280037,1725573123619,-500.0,0.00025479,2]
[337280038,1725573123630,-500.0,0.00025479,2]
[337280039,1725573123641,-500.0,0.00025479,2]
[337280040,1725573123650,-1529.25,0.00025479,2]
[337280041,1725573123662,-512.48,0.00025479,2]
[337280042,1725573123673,-1497.88,0.00025479,2]
[337280043,1725573123684,-500.0,0.00025479,2]
[337280044,1725573123695,-3384.84,0.00025479,2]
[337280045,1725573123707,-1224.58,0.00025479,2]
[337280046,1725573123717,-500.0,0.00025479,2]
[337280047,1725573123727,-1508.59,0.00025479,2]
[337280048,1725573123738,-500.0,0.00025479,2]
[337280049,1725573123750,-948.48,0.00025479,2]
[337280050,1725573123761,-500.0,0.00025479,2]
[337280051,1725573123771,-509.6,0.00025479,2]
[337280052,1725573123781,-500.0,0.00025479,2]
[337280053,1725573123791,-3334.83,0.00025479,2]
[337280054,1725573123801,-500.0,0.00025479,2]
[337280055,1725573123813,-500.0,0.00025479,2]
[337280056,1725573123823,-956.86,0.00025479,2]
[337280057,1725573123836,-500.0,0.00025479,2]
[337280058,1725573123849,-500.0,0.00025479,2]
[337280059,1725573123859,-807.1,0.00025479,2]
[337280060,1725573123872,-402.27971107,0.00025479,2]
[337280061,1725573123883,-613.58,0.00025479,2]
[337280062,1725573123895,-500.0,0.00025479,2]
[337280063,1725573123905,-545.62,0.00025479,2]
[337280064,1725573123916,-531.34753714,0.00025479,2]
[337280065,1725573123927,-450.51162476,0.00025479,2]
[337280066,1725573123938,-500.0,0.00025479,2]
[337280067,1725573123947,-1234.38,0.00025479,2]
[337280068,1725573123959,-1688.93,0.00025479,2]
[337280069,1725573123969,-500.0,0.00025479,2]
[337280070,1725573123980,-500.0,0.00025479,2]
[337280071,1725573123991,-775.84,0.00025479,2]
[337280072,1725573124001,-6155.32,0.00025479,2]
[337280073,1725573124011,-500.0,0.00025479,2]
[337280074,1725573124022,-1513.75,0.00025479,2]
[337280075,1725573124031,-1384.94,0.00025479,2]
[337280076,1725573124040,-891.8,0.00025479,2]
[337280077,1725573124050,-1454.37,0.00025479,2]
[337280078,1725573124060,-727.07,0.00025479,2]
[337280079,1725573124070,-500.0,0.00025479,2]
[337280080,1725573124081,-803.53,0.00025479,2]
[337280081,1725573124092,-500.0,0.00025479,2]
[337280082,1725573124103,-3161.3,0.00025479,2]
[337280083,1725573124114,-1185.19,0.00025479,2]
[337280084,1725573124124,-831.41,0.00025479,2]
[337280085,1725573124134,-1174.57,0.00025479,2]
[337280086,1725573124145,-7144.8,0.00025479,2]
[337280087,1725573124157,-500.0,0.00025479,2]
[337280088,1725573124169,-500.0,0.00025479,2]
[337280089,1725573124180,-11733.4,0.00025479,2]
[337280090,1725573124190,-500.0,0.00025479,2]
[337280091,1725573124200,-500.0,0.00025479,2]
[337280092,1725573124210,-4398.52,0.00025479,2]
[337280093,1725573124219,-1185.15,0.00025479,2]
[337280094,1725573124229,-544.5,0.00025479,2]
[337280095,1725573124240,-1466.8,0.00025479,2]
[337280096,1725573124250,-13227.74,0.00025479,2]
[337280097,1725573124261,-500.0,0.00025479,2]
[337280098,1725573124270,-8686.28,0.00025479,2]
[337280099,1725573124280,-1353.11,0.00025479,2]
[337280100,1725573124290,-393.09222234,0.00025479,2]
[337280101,1725573124301,-500.0,0.00025479,2]
[337280102,1725573124311,-704.28,0.00025479,2]
[337280103,1725573124320,-590.9,0.00025479,2]
[337280104,1725573124331,-1233.53,0.00025479,2]
[337280105,1725573124340,-500.0,0.00025479,2]
[337280106,1725573124350,-1358.39,0.00025479,2]
[337280107,1725573124360,-900.4,0.00025479,2]
[337280108,1725573124370,-823.63,0.00025479,2]
[337280109,1725573124380,-509.12,0.00025479,2]
[337280110,1725573124390,-7723.59,0.00025479,2]
[337280111,1725573124403,-1103.42,0.00025479,2]
[337280112,1725573124414,-628.33,0.00025479,2]
[337280113,1725573124426,-500.0,0.00025479,2]
[337280114,1725573124437,-500.0,0.00025479,2]
[337280115,1725573124449,-2578.29,0.00025479,2]
[337280116,1725573124459,-500.0,0.00025479,2]
[337280117,1725573124469,-500.0,0.00025479,2]
[337280118,1725573124480,-282.67087902,0.00025479,2]
[337280119,1725573124492,-1133.56,0.00025479,2]
[337280120,1725573124502,-1129.73,0.00025479,2]
[337280121,1725573124514,-1144.17,0.00025479,2]
[337280122,1725573124524,-938.87,0.00025479,2]
[337280123,1725573124534,-3954.36,0.00025479,2]
[337280124,1725573124548,-500.0,0.00025479,2]
[337280125,1725573124559,-563.72,0.00025479,2]
[337280126,1725573124569,-500.0,0.00025479,2]
[337280127,1725573124579,-500.0,0.00025479,2]
[337280128,1725573124591,-828.83,0.00025479,2]
[337280129,1725573124601,-7650.67,0.00025479,2]
[337280130,1725573124613,-686.81,0.00025479,2]
[337280131,1725573124624,-638.15,0.00025479,2]
[337280132,1725573124634,-500.0,0.00025479,2]
[337280133,1725573124646,-500.0,0.00025479,2]
[337280134,1725573124657,-871.34,0.00025479,2]
[337280135,1725573124667,-970.45,0.00025479,2]
[337280136,1725573124678,-500.0,0.00025479,2]
[337280137,1725573124689,-342.2164392,0.00025479,2]
[337280138,1725573124699,-875.36,0.00025479,2]
[337280139,1725573124710,-1709.21,0.00025479,2]
[337280140,1725573124720,-5424.64,0.00025479,2]
[337280141,1725573124731,-1320.86,0.00025479,2]
[337280142,1725573124742,-646.37,0.00025479,2]
[337280143,1725573124751,-777.39,0.00025479,2]
[337280144,1725573124761,-4959.4,0.00025479,2]
[337280145,1725573124771,-1196.83,0.00025479,2]
[337280146,1725573124781,-589.02,0.00025479,2]
[337280147,1725573124790,-500.0,0.00025479,2]
[337280148,1725573124801,-500.0,0.00025479,2]
[337280149,1725573124811,-948.09,0.00025479,2]
[337280150,1725573124821,-183.65,0.00025479,2]
[337280151,1725573124831,-500.0,0.00025479,2]
[337280152,1725573124841,-946.95,0.00025479,2]
[337280153,1725573124850,-156.08624695,0.00025479,2]
[337280154,1725573124861,-6005.41,0.00025479,2]
[337280155,1725573124871,-1557.31,0.00025479,2]
[337280156,1725573124881,-7130.97,0.00025479,2]
[337280157,1725573124891,-983.46,0.00025479,2]
[337280158,1725573124901,-788.94,0.00025479,2]
[337280159,1725573124911,-1361.66,0.00025479,2]
[337280160,1725573124920,-3476.04,0.00025479,2]
[337280161,1725573124930,-745.29,0.00025479,2]
[337280162,1725573124940,-500.0,0.00025479,2]
[337280163,1725573124950,-500.0,0.00025479,2]
[337280164,1725573124959,-500.0,0.00025479,2]
[337280165,1725573124969,-1053.94,0.00025479,2]
[337280166,1725573124978,-500.0,0.00025479,2]
[337280167,1725573124988,-899.19,0.00025479,2]
[337280168,1725573124998,-1880.59,0.00025479,2]
[337280169,1725573125008,-563.87,0.00025479,2]
[337280170,1725573125017,-500.0,0.00025486,2]
[337280171,1725573125027,-707.26,0.000255,14]
[337280172,1725573125036,-587.0,0.00025542,2]
[337280173,1725573125046,-500.0,0.00025623,2]
[337280174,1725573125056,-900.0,0.00025658,2]